bitfinex/quotes_BTCUSD_20220731
["timestamp","ask_amount","ask_price","bid_price","bid_amount"]
[1659225808359,0.40725733,23610.0,23605.0,0.473459]
[1659225808604,0.40725733,23610.0,23605.0,0.423459]
[1659225809273,0.304792,23609.0,23605.0,0.423459]
[1659225809502,0.71204933,23608.0,23606.0,0.03152718]
[1659225809720,0.549368,23613.0,23605.0,0.423459]
[1659225809721,0.40725733,23607.0,23605.0,0.35498618]
[1659225810661,0.40725733,23607.0,23605.0,0.14326118]
[1659225812713,0.03467316,23606.0,23605.0,0.14326118]
[1659225812932,0.44193049,23606.0,23605.0,0.14326118]
[1659225813402,0.44193049,23606.0,23605.0,0.14313078]
[1659225814340,0.40725733,23606.0,23605.0,0.14313078]
[1659225815045,0.40725733,23606.0,23605.0,0.04626378]
[1659225815269,0.71204933,23606.0,23605.0,0.04626378]
[1659225816706,0.40725733,23606.0,23605.0,0.04626378]
[1659225816927,0.71204933,23606.0,23605.0,0.03726378]
[1659225817383,0.40725733,23606.0,23605.0,0.03726378]
[1659225817598,0.71204933,23606.0,23605.0,0.03726378]
[1659225817822,0.55,23605.0,23603.0,0.06135178]
[1659225818063,0.71204933,23604.0,23603.0,0.06135178]
[1659225818293,0.40725733,23604.0,23603.0,0.06135178]
[1659225818544,1.21204933,23604.0,23603.0,0.001]
[1659225818779,0.45725733,23604.0,23603.0,0.001]
[1659225819007,0.71204933,23604.0,23603.0,0.001]
[1659225819934,0.84381933,23604.0,23603.0,0.001]
[1659225820143,0.71204933,23604.0,23603.0,0.001]
[1659225820683,1.0,23603.0,23599.0,0.102117]
[1659225820894,0.71204933,23602.0,23599.0,0.102117]
[1659225821153,0.71204933,23601.0,23599.0,0.102117]
[1659225821388,0.078,23604.0,23599.0,0.102117]
[1659225821603,0.40725733,23603.0,23600.0,0.654212]
[1659225821824,0.40725733,23603.0,23601.0,0.940018]
[1659225822038,0.40725733,23603.0,23601.0,0.635226]
[1659225822273,0.48525733,23604.0,23601.0,0.846978]
[1659225822500,0.40725733,23604.0,23601.0,0.846978]
[1659225822721,0.40725733,23604.0,23602.0,0.211757]
[1659225822943,0.40725733,23604.0,23602.0,0.423513]
[1659225823196,0.44193049,23604.0,23602.0,0.211756]
[1659225823407,0.40725733,23603.0,23602.0,0.211756]
[1659225823630,0.40725733,23603.0,23602.0,2.78586877]
[1659225824083,0.40725733,23603.0,23602.0,3.09066077]
[1659225824311,0.40725733,23603.0,23602.0,2.78586877]
[1659225825036,0.40725733,23603.0,23602.0,2.86586877]
[1659225825506,0.40725733,23603.0,23602.0,0.291756]
[1659225826388,0.40725733,23603.0,23602.0,0.211756]
[1659225827074,0.40725733,23603.0,23602.0,0.291756]
[1659225827274,0.40725733,23603.0,23602.0,0.286756]
[1659225827735,0.71204933,23603.0,23602.0,0.286756]
[1659225827949,0.40725733,23603.0,23602.0,0.286756]
[1659225828461,0.40725733,23603.0,23602.0,0.206756]
[1659225828890,0.40725733,23603.0,23602.0,0.286756]
[1659225830248,0.40725733,23603.0,23602.0,0.201756]
[1659225831148,0.40725733,23603.0,23602.0,0.281756]
[1659225832077,0.40725733,23603.0,23602.0,0.271756]
[1659225832349,0.40725733,23603.0,23602.0,0.191756]
[1659225832801,0.71204933,23603.0,23602.0,0.186756]
[1659225833014,0.40725733,23603.0,23602.0,0.266756]
[1659225833687,0.71204933,23603.0,23602.0,0.266756]
[1659225833917,0.40725733,23603.0,23602.0,0.266756]
[1659225834368,0.40725733,23603.0,23602.0,0.186756]
[1659225834602,0.71204933,23603.0,23602.0,0.186756]
[1659225835014,0.40725733,23603.0,23602.0,0.266756]
[1659225835909,0.40725733,23603.0,23602.0,0.261756]
[1659225836466,0.71204933,23603.0,23602.0,0.181756]
[1659225836677,0.40725733,23603.0,23602.0,0.181756]
[1659225837125,0.40725733,23603.0,23602.0,0.261756]
[1659225837549,0.71204933,23603.0,23602.0,0.261756]
[1659225837773,0.76204933,23603.0,23602.0,0.155878]
[1659225838205,0.71204933,23603.0,23602.0,0.155878]
[1659225838425,0.71204933,23603.0,23602.0,0.075878]
[1659225839074,0.71204933,23603.0,23602.0,0.154878]
[1659225839749,0.71204933,23603.0,23600.0,0.105905]
[1659225840024,0.71204933,23603.0,23593.0,0.002]
[1659225840025,0.05,23598.0,23593.0,0.002]
[1659225840235,0.40725733,23595.0,23593.0,0.002]
[1659225840469,1.616701,23594.0,23593.0,0.002]
[1659225840702,0.97395833,23594.0,23593.0,0.002]
[1659225840920,0.40725733,23594.0,23593.0,0.09507]
[1659225841147,0.6197,23599.0,23594.0,0.105912]
[1659225841148,0.079,23595.0,23594.0,0.105912]
[1659225841373,0.79104933,23595.0,23594.0,0.211824]
[1659225841829,0.48625733,23595.0,23594.0,0.211824]
[1659225842050,0.79104933,23595.0,23594.0,0.211824]
[1659225842291,0.71204933,23595.0,23594.0,0.211824]
[1659225843007,0.48625733,23595.0,23594.0,0.211824]
[1659225843938,0.05,23593.0,23592.0,0.0046]
[1659225844192,1.11204933,23593.0,23592.0,0.0046]
[1659225844645,0.81204933,23593.0,23592.0,0.0046]
[1659225845090,0.89104933,23593.0,23592.0,0.0046]
[1659225845752,0.84104933,23593.0,23592.0,0.0046]
[1659225846199,0.79104933,23593.0,23592.0,0.0046]
[1659225846436,0.71204933,23593.0,23592.0,0.0046]
[1659225846659,0.86204933,23593.0,23586.0,0.104761]
[1659225846880,0.211924,23591.0,23587.0,0.00011875]
[1659225847114,0.74672249,23590.0,23587.0,0.00011875]
[1659225847342,0.71204933,23589.0,23587.0,0.00011875]
[1659225847577,0.00011,23587.0,23586.0,0.03796975]
[1659225847844,0.00011,23587.0,23584.0,0.0031]
[1659225847845,2.20443933,23587.0,23584.0,0.0031]
[1659225848081,0.76204933,23586.0,23584.0,0.0031]
[1659225848775,0.71204933,23586.0,23584.0,0.0031]
[1659225849053,0.79104933,23586.0,23584.0,0.0031]
[1659225849302,0.79104933,23586.0,23585.0,0.13845]
[1659225849303,0.48625733,23586.0,23585.0,0.13845]
[1659225849534,0.79104933,23586.0,23585.0,0.13845]
[1659225850245,0.79104933,23586.0,23584.0,0.215025]
[1659225850246,0.71204933,23586.0,23584.0,0.0031]
[1659225850453,1.0332,23591.0,23584.0,0.09617]
[1659225850454,0.71204933,23585.0,23584.0,0.09617]
[1659225850666,0.71204933,23585.0,23584.0,0.0031]
[1659225851361,0.33946516,23585.0,23584.0,0.13845]
[1659225852102,0.044,23586.0,23584.0,0.13845]
[1659225852325,0.40725733,23586.0,23584.0,0.09617]
[1659225852532,0.40725733,23586.0,23584.0,0.202132]
[1659225852984,0.304792,23585.0,23584.0,0.109062]
[1659225853231,0.48525733,23586.0,23584.0,0.109062]
[1659225853458,0.33946516,23585.0,23584.0,0.109062]
[1659225853662,0.304792,23585.0,23584.0,0.109062]
[1659225854116,0.71204933,23585.0,23584.0,0.109062]
[1659225854349,0.74672249,23585.0,23584.0,0.0031]
[1659225855045,0.80872249,23585.0,23584.0,0.0009]
[1659225855275,0.80872249,23585.0,23580.0,0.002]
[1659225855276,0.00011,23580.0,23572.0,0.0031]
[1659225855547,0.516845,23579.0,23572.0,0.0031]
[1659225855769,0.062,23585.0,23573.0,0.03182]
[1659225855992,0.71204933,23584.0,23582.0,1.82150087]
[1659225856208,0.304792,23583.0,23582.0,1.82150087]
[1659225856442,0.40725733,23584.0,23582.0,1.82150087]
[1659225856898,0.40725733,23584.0,23581.0,0.10598]
[1659225857116,0.079,23583.0,23581.0,0.10598]
[1659225857354,1.21204933,23582.0,23576.0,0.0011]
[1659225857570,0.45725733,23580.0,23576.0,0.0011]
[1659225857799,1.11204933,23579.0,23576.0,0.0011]
[1659225858046,0.71204933,23578.0,23576.0,0.0011]
[1659225858271,0.71204933,23577.0,23576.0,0.0011]
[1659225858952,0.82572249,23577.0,23576.0,0.0011]
[1659225860196,0.79104933,23577.0,23576.0,0.0011]
[1659225860419,0.71204933,23577.0,23576.0,0.0011]
[1659225861115,0.79104933,23577.0,23576.0,0.0011]
[1659225862042,0.82572249,23577.0,23576.0,0.0011]
[1659225862304,0.74672249,23577.0,23576.0,0.0011]
[1659225863117,0.79104933,23577.0,23576.0,0.0011]
[1659225864792,0.71204933,23577.0,23576.0,0.0011]
[1659225865012,0.079,23577.0,23576.0,0.0011]
[1659225865236,0.079,23577.0,23576.0,0.05175184]
[1659225865465,0.079,23577.0,23576.0,0.89561117]
[1659225865680,0.635827,23590.0,23579.0,0.05]
[1659225865894,0.635827,23590.0,23580.0,0.3]
[1659225865895,0.40725733,23589.0,23580.0,0.3]
[1659225866155,0.40725733,23589.0,23581.0,0.211906]
[1659225866360,0.304792,23588.0,23581.0,0.211906]
[1659225866592,1.052964,23590.0,23581.0,0.211906]
[1659225866593,0.71204933,23587.0,23581.0,0.211906]
[1659225866805,0.71204933,23587.0,23583.0,0.211906]
[1659225866806,0.40725733,23587.0,23583.0,0.211906]
[1659225867078,0.304792,23586.0,23583.0,0.211906]
[1659225867292,0.304792,23585.0,23583.0,0.211906]
[1659225867524,0.40725733,23587.0,23583.0,0.211906]
[1659225867742,0.304792,23586.0,23583.0,0.211906]
[1659225867957,0.44193049,23585.0,23583.0,0.105953]
[1659225868244,0.44193049,23585.0,23577.0,0.05]
[1659225868245,0.71204933,23584.0,23577.0,0.05]
[1659225868452,0.92404233,23583.0,23576.0,0.0011]
[1659225868697,0.71204933,23582.0,23577.0,0.105983]
[1659225868916,0.05,23584.0,23577.0,0.180983]
[1659225868917,0.40725733,23581.0,23577.0,0.180983]
[1659225870244,0.40725733,23581.0,23577.0,0.405983]
[1659225870666,0.40725733,23581.0,23577.0,0.105983]
[1659225870897,0.47625733,23581.0,23577.0,0.113983]
[1659225871126,0.03467316,23580.0,23577.0,0.113983]
[1659225871779,0.304792,23579.0,23577.0,0.008]
[1659225872005,0.03467316,23580.0,23577.0,0.008]
[1659225872219,0.03467316,23580.0,23576.0,0.107086]
[1659225872220,0.304792,23579.0,23576.0,0.107086]
[1659225872438,0.03467316,23580.0,23576.0,0.107086]
[1659225872699,0.03467316,23580.0,23567.0,0.212035]
[1659225872700,0.1,23571.0,23567.0,0.212035]
[1659225872918,0.1,23571.0,23564.0,0.0011]
[1659225872919,0.05,23565.0,23564.0,0.0011]
[1659225873167,0.05,23565.0,23553.0,0.23445209]
[1659225873168,1.25,23563.0,23553.0,0.23445209]
[1659225873391,0.04561646,23554.0,23553.0,0.23445209]
[1659225873616,0.04561646,23554.0,23547.0,0.5]
[1659225873863,0.45287379,23554.0,23551.0,0.304792]
[1659225874087,0.08467316,23553.0,23552.0,0.304792]
[1659225874308,0.3,23560.0,23547.0,0.03185]
[1659225874731,2.03413786,23562.0,23554.0,0.002]
[1659225874732,0.71204933,23559.0,23554.0,0.002]
[1659225874970,0.71204933,23558.0,23554.0,0.002]
[1659225875203,0.74672249,23557.0,23554.0,0.002]
[1659225875462,0.71204933,23556.0,23554.0,0.002]
[1659225875671,0.03467316,23557.0,23550.0,0.97220766]
[1659225875672,0.304792,23555.0,23550.0,0.97220766]
[1659225875898,0.03467316,23557.0,23551.0,0.43910733]
[1659225876112,0.039,23560.0,23552.0,0.05]
[1659225876361,0.3,23561.0,23558.0,0.05]
[1659225876362,0.40725733,23561.0,23558.0,0.05]
[1659225876600,1.2126,23567.0,23561.0,0.05]
[1659225876834,1.2126,23567.0,23553.0,0.01261177]
[1659225876835,0.22776975,23558.0,23557.0,1.0]
[1659225877046,0.22776975,23558.0,23557.0,1.89493733]
[1659225877304,0.007,23561.0,23560.0,0.30438354]
[1659225877553,0.3,23573.0,23560.0,1.42246887]
[1659225877814,0.71204933,23572.0,23561.0,0.40725733]
[1659225878025,1.01204933,23571.0,23561.0,0.40725733]
[1659225878266,0.28825935,23572.0,23562.0,0.00020755]
[1659225878267,0.71204933,23570.0,23562.0,0.00020755]
[1659225878510,0.40725733,23569.0,23562.0,0.31281932]
[1659225878728,0.40725733,23569.0,23563.0,0.01261177]
[1659225879668,0.40725733,23569.0,23562.0,0.3]
[1659225880384,0.40725733,23569.0,23562.0,0.31261177]
[1659225881051,0.47825733,23569.0,23562.0,0.31561177]
[1659225881280,0.40725733,23568.0,23562.0,0.31561177]
[1659225881752,0.5,23563.0,23562.0,0.008]
[1659225881987,1.24672249,23563.0,23562.0,0.008]
[1659225882311,0.79672249,23563.0,23562.0,0.008]
[1659225882557,0.79672249,23563.0,23554.0,0.106047]
[1659225882558,0.318168,23571.0,23558.0,0.00011625]
[1659225882770,0.05,23560.0,23558.0,0.00011625]
[1659225883007,1.69672249,23559.0,23558.0,0.00011625]
[1659225883230,0.79672249,23559.0,23558.0,0.00011625]
[1659225883454,0.79672249,23559.0,23550.0,0.972]
[1659225883681,0.74388933,23558.0,23550.0,0.972]
[1659225883910,0.71204933,23557.0,23550.0,0.972]
[1659225884137,0.40725733,23559.0,23551.0,0.71204933]
[1659225884369,0.825783,23565.0,23550.0,1.0161582]
[1659225884370,0.3,23563.0,23552.0,0.74388933]
[1659225884579,0.3,23563.0,23550.0,1.0161582]
[1659225884580,0.40725733,23562.0,23553.0,0.40725733]
[1659225884799,0.45725733,23562.0,23553.0,0.40725733]
[1659225885012,0.40725733,23561.0,23553.0,0.40725733]
[1659225885965,0.3645718,23550.0,23541.0,0.001]
[1659225886220,0.1,23542.0,23541.0,0.001]
[1659225886451,0.84193049,23542.0,23541.0,0.001]
[1659225886682,1.10347125,23542.0,23541.0,0.001]
[1659225886909,0.45725733,23542.0,23541.0,0.001]
[1659225887142,0.6052,23549.0,23541.0,0.13635]
[1659225887414,0.40725733,23548.0,23541.0,0.13635]
[1659225887636,0.40725733,23548.0,23543.0,0.106127]
[1659225887637,0.304792,23547.0,23543.0,0.106127]
[1659225887875,0.304792,23547.0,23541.0,0.40825733]
[1659225887876,0.05,23543.0,23541.0,0.001]
[1659225888089,0.45725733,23542.0,23541.0,0.001]
[1659225888309,0.05,23545.0,23541.0,0.001]
[1659225888528,0.40725733,23544.0,23541.0,0.001]
[1659225888750,0.5,23542.0,23541.0,0.001]
[1659225888977,1.21204933,23542.0,23541.0,0.001]
[1659225889664,0.03185,23547.0,23541.0,0.001]
[1659225889979,0.25668006,23548.0,23541.0,0.001]
[1659225889980,0.71204933,23546.0,23541.0,0.001]
[1659225890142,0.71204933,23545.0,23541.0,0.001]
[1659225890367,0.71204933,23544.0,23541.0,0.000782]
[1659225890606,0.71204933,23543.0,23541.0,0.000782]
[1659225890824,0.71204933,23542.0,23541.0,0.000782]
[1659225891068,0.3,23549.0,23541.0,0.50110933]
[1659225891069,0.03185,23549.0,23541.0,0.50110933]
[1659225891290,0.40725733,23549.0,23543.0,0.156112]
[1659225891519,0.0042,23550.0,23544.0,0.304792]
[1659225891520,0.41145733,23550.0,23544.0,0.304792]
[1659225891752,0.41145733,23550.0,23543.0,0.61948133]
[1659225892187,0.304792,23549.0,23543.0,0.61948133]
[1659225892411,0.40725733,23549.0,23543.0,0.106112]
[1659225892626,0.41145733,23550.0,23543.0,0.51336933]
[1659225893137,0.1,23544.0,23541.0,0.000782]
[1659225893366,0.44193049,23543.0,23541.0,0.000782]
[1659225893617,0.1,23541.0,23540.0,0.002]
[1659225893847,1.2,23535.0,23534.0,0.0042]
[1659225894124,2.01204933,23535.0,23534.0,0.0042]
[1659225894370,1.94672249,23535.0,23534.0,0.0042]
[1659225894606,1.97859249,23535.0,23534.0,0.0042]
[1659225894843,1.97859249,23535.0,23534.0,0.09727]
[1659225894844,0.40725733,23535.0,23534.0,0.09727]
[1659225895066,0.724792,23535.0,23534.0,0.0042]
[1659225895304,0.75946516,23535.0,23534.0,0.0042]
[1659225895544,0.75946516,23535.0,23531.0,0.001]
[1659225895545,0.9,23532.0,23531.0,0.001]
[1659225895792,2.30079795,23532.0,23531.0,0.001]
[1659225896029,2.30079795,23532.0,23528.0,0.0031]
[1659225896030,0.1,23529.0,23528.0,0.0031]
[1659225896262,0.71204933,23529.0,23528.0,0.0031]
[1659225896492,0.3036,23535.0,23528.0,0.0031]
[1659225896714,0.40725733,23529.0,23528.0,0.0031]
[1659225896955,0.74204933,23529.0,23528.0,0.0031]
[1659225897227,0.43725733,23529.0,23528.0,0.0031]
[1659225897454,2.64372249,23529.0,23521.0,0.001]
[1659225897680,0.40725733,23526.0,23521.0,0.001]
[1659225897915,0.05,23525.0,23521.0,0.001]
[1659225898135,0.40725733,23526.0,23521.0,0.001]
[1659225898373,0.3,23534.0,23521.0,0.001]
[1659225898374,0.3336,23535.0,23521.0,0.44014733]
[1659225898597,1.0022,23538.0,23521.0,0.44014733]
[1659225898598,0.40725733,23534.0,23524.0,0.21239]
[1659225898857,0.0149,23534.0,23525.0,0.74392933]
[1659225899081,0.0149,23529.0,23522.0,0.03189]
[1659225899316,0.0149,23529.0,23522.0,0.40725733]
[1659225899317,0.42215733,23529.0,23522.0,0.40725733]
[1659225899550,0.0149,23531.0,23523.0,1.11825133]
[1659225899772,0.0149,23531.0,23524.0,0.43913733]
[1659225900005,0.0149,23534.0,23525.0,0.40725733]
[1659225900234,0.011,23535.0,23526.0,0.442864]
[1659225900456,0.0149,23536.0,23528.0,0.212356]
[1659225900697,0.2887,23540.0,23529.0,0.54531333]
[1659225900947,0.0149,23538.0,23537.0,0.031454]
[1659225901170,0.0149,23540.0,23537.0,0.031454]
[1659225901443,0.0149,23540.0,23537.0,0.039383]
[1659225901683,0.35,23538.0,23537.0,0.039383]
[1659225901907,0.669692,23538.0,23537.0,0.039383]
[1659225902359,0.35,23538.0,23537.0,0.039383]
[1659225902803,0.40725733,23543.0,23537.0,0.344175]
[1659225903030,0.0149,23542.0,23537.0,0.118383]
[1659225903487,0.40725733,23543.0,23537.0,0.118383]
[1659225903708,0.1099,23544.0,23537.0,0.73791833]
[1659225903947,0.1099,23544.0,23538.0,1.09390933]
[1659225903948,0.1,23544.0,23538.0,1.09390933]
[1659225904180,0.1,23544.0,23539.0,0.81818633]
[1659225904413,0.1,23544.0,23543.0,0.45]
[1659225904660,0.1,23544.0,23542.0,0.106121]
[1659225904887,0.09,23544.0,23541.0,0.3]
[1659225905116,0.09,23544.0,23541.0,0.70725733]
[1659225905340,0.09,23544.0,23541.0,0.75725733]
[1659225905610,0.09,23544.0,23541.0,0.70725733]
[1659225905837,0.09,23544.0,23543.0,0.80438354]
[1659225906066,0.09,23544.0,23543.0,1.40917554]
[1659225906297,0.09,23544.0,23543.0,1.81643287]
[1659225906810,0.09,23544.0,23543.0,1.91643287]
[1659225907041,0.09,23544.0,23543.0,1.85043287]
[1659225907292,0.09,23544.0,23543.0,1.79604933]
[1659225907741,0.09,23544.0,23543.0,1.84604933]
[1659225907975,0.09,23544.0,23543.0,1.49125733]
[1659225908194,0.09,23544.0,23543.0,1.79604933]
[1659225908435,0.09,23544.0,23543.0,1.76204933]
[1659225908937,0.09,23544.0,23543.0,1.354792]
[1659225909185,0.09,23544.0,23543.0,1.91604933]
[1659225909418,0.09,23544.0,23543.0,1.95041339]
[1659225909630,0.09,23544.0,23543.0,1.91855339]
[1659225909857,0.09,23544.0,23543.0,1.24849846]
[1659225910322,0.09,23544.0,23543.0,1.19449846]
[1659225910579,0.09,23544.0,23543.0,0.60729606]
[1659225910580,0.12467316,23544.0,23543.0,0.60729606]
[1659225910810,0.12467316,23544.0,23543.0,0.00250406]
[1659225911031,0.12467316,23544.0,23543.0,0.07050406]
[1659225911466,0.09,23544.0,23543.0,0.07050406]
[1659225912341,0.09,23544.0,23543.0,0.00250406]
[1659225912569,0.09,23544.0,23543.0,0.09557406]
[1659225912912,0.09,23544.0,23543.0,0.40036606]
[1659225913004,0.12467316,23544.0,23543.0,0.45436606]
[1659225913280,0.09,23544.0,23543.0,0.05650406]
[1659225913947,0.09,23544.0,23543.0,0.76855339]
[1659225914184,0.09,23544.0,23543.0,1.11855339]
[1659225914415,0.09,23544.0,23543.0,1.27679139]
[1659225914610,0.09,23544.0,23543.0,1.22679139]
[1659225915054,0.085,23544.0,23543.0,1.27979139]
[1659225915520,0.085,23544.0,23543.0,0.66029606]
[1659225915733,0.085,23544.0,23543.0,0.05550406]
[1659225916809,0.085,23544.0,23543.0,0.46276139]
[1659225917032,0.085,23544.0,23543.0,0.52676139]
[1659225917274,0.085,23544.0,23543.0,0.37129606]
[1659225917976,0.085,23544.0,23543.0,1.29080439]
[1659225918199,0.085,23544.0,23543.0,1.81527239]
[1659225918416,0.085,23544.0,23543.0,1.66388416]
[1659225918629,0.085,23544.0,23543.0,1.65127239]
[1659225919099,0.085,23544.0,23543.0,1.78134159]
[1659225919831,0.085,23544.0,23543.0,1.73134159]
[1659225920276,0.085,23544.0,23543.0,1.68734159]
[1659225920759,0.085,23544.0,23543.0,1.73734159]
[1659225921002,0.085,23544.0,23543.0,1.79134159]
[1659225921215,0.0099,23551.0,23548.0,1.00438354]
[1659225921433,0.051,23562.0,23550.0,1.09812787]
[1659225921434,0.0099,23555.0,23550.0,1.09812787]
[1659225921663,0.001,23562.0,23555.0,0.7]
[1659225921908,0.001,23562.0,23557.0,0.212129]
[1659225922144,0.001,23562.0,23558.0,0.40725733]
[1659225922355,0.001,23562.0,23559.0,1.028953]
[1659225922580,0.001,23562.0,23561.0,0.05438354]
[1659225922822,0.001,23562.0,23561.0,2.12849587]
[1659225923274,0.001,23562.0,23561.0,2.22849587]
[1659225924392,0.001,23562.0,23561.0,1.27849587]
[1659225924669,0.55,23567.0,23563.0,0.106044]
[1659225924881,0.74387933,23566.0,23563.0,0.106044]
[1659225925118,0.71204933,23565.0,23563.0,0.106044]
[1659225925337,0.71204933,23564.0,23563.0,0.106044]
[1659225925556,0.05,23570.0,23563.0,0.51330133]
[1659225925774,0.05,23570.0,23563.0,0.61934533]
[1659225925775,0.71204933,23570.0,23563.0,0.61934533]
[1659225926005,0.304792,23569.0,23563.0,0.61934533]
[1659225926231,0.304792,23568.0,23563.0,0.61934533]
[1659225926441,0.08182,23572.0,23564.0,0.40725733]
[1659225926656,0.40725733,23571.0,23565.0,0.406034]
[1659225926902,0.304792,23570.0,23565.0,0.106034]
[1659225927156,0.30485496,23569.0,23566.0,0.00250406]
[1659225927354,0.33946516,23568.0,23566.0,0.00250406]
[1659225928289,0.43907733,23571.0,23566.0,0.40976139]
[1659225928290,0.03182,23571.0,23566.0,0.40976139]
[1659225928526,0.03182,23571.0,23566.0,0.00250406]
[1659225928527,0.71204933,23571.0,23566.0,0.00250406]
[1659225928757,0.304792,23570.0,23566.0,0.00250406]
[1659225928989,0.304792,23569.0,23566.0,0.04250406]
[1659225929217,0.304792,23568.0,23566.0,0.44976139]
[1659225929443,0.05,23572.0,23566.0,0.44970139]
[1659225929903,0.43907733,23571.0,23566.0,0.04244406]
[1659225930126,1.05,23567.0,23566.0,0.04244406]
[1659225930356,1.89386933,23567.0,23566.0,0.04244406]
[1659225930819,1.89386933,23567.0,23566.0,0.00244406]
[1659225931033,1.76204933,23567.0,23566.0,0.07944406]
[1659225931255,1.79386933,23567.0,23566.0,0.07944406]
[1659225931956,1.77854249,23567.0,23566.0,0.07944406]
[1659225932250,1.82854249,23567.0,23566.0,0.07944406]
[1659225932480,1.82854249,23567.0,23566.0,0.00244406]
[1659225932702,1.87854249,23567.0,23566.0,0.00244406]
[1659225933362,1.77854249,23567.0,23566.0,0.00244406]
[1659225933575,1.82854249,23567.0,23566.0,0.00244406]
[1659225933817,1.74672249,23567.0,23566.0,0.00244406]
[1659225934487,1.77854249,23567.0,23566.0,0.00244406]
[1659225934946,1.87854249,23567.0,23566.0,0.00244406]
[1659225935626,1.84672249,23567.0,23566.0,0.00244406]
[1659225935847,1.79672249,23567.0,23566.0,0.00244406]
[1659225936103,1.84672249,23567.0,23566.0,0.00244406]
[1659225936322,1.74672249,23567.0,23566.0,0.00244406]
[1659225936665,1.69672249,23567.0,23566.0,0.00244406]
[1659225936872,1.72854249,23567.0,23566.0,0.00244406]
[1659225937294,0.3,23565.0,23563.0,0.106061]
[1659225937522,0.304792,23564.0,23563.0,0.106061]
[1659225938923,0.304792,23564.0,23563.0,0.122061]
[1659225940276,0.304792,23564.0,23563.0,0.106061]
[1659225940482,0.01755594,23566.0,23563.0,0.106061]
[1659225940933,0.01755594,23566.0,23563.0,0.123061]
[1659225941795,0.0522291,23566.0,23563.0,0.123061]
[1659225942014,0.304792,23565.0,23563.0,0.123061]
[1659225942213,0.0522291,23566.0,23563.0,0.106061]
[1659225942432,0.01755594,23566.0,23563.0,0.106061]
[1659225942867,0.01755594,23566.0,23563.0,0.130061]
[1659225943347,0.01755594,23566.0,23564.0,0.212068]
[1659225943553,0.01755594,23566.0,23565.0,0.35917554]
[1659225943796,0.01755594,23566.0,23565.0,0.05438354]
[1659225944017,0.01755594,23566.0,23565.0,0.65917554]
[1659225944899,0.01755594,23566.0,23565.0,0.68217554]
[1659225945801,0.01755594,23566.0,23565.0,0.38217554]
[1659225945999,0.01755594,23566.0,23565.0,0.07738354]
[1659225946217,0.01755594,23566.0,23565.0,0.05438354]
[1659225946652,0.01755594,23566.0,23565.0,0.35917554]
[1659225946866,0.01755594,23566.0,23565.0,0.39317554]
[1659225947091,0.01255594,23566.0,23565.0,0.08838354]
[1659225947297,0.01255594,23566.0,23565.0,0.38838354]
[1659225948404,0.01255594,23566.0,23565.0,0.65917554]
[1659225948608,0.01255594,23566.0,23565.0,1.06643287]
[1659225948867,0.01255594,23566.0,23565.0,0.304792]
[1659225949070,0.01255594,23566.0,23565.0,0.046]
[1659225949297,0.31734794,23566.0,23565.0,0.046]
[1659225949504,0.01255594,23566.0,23565.0,0.046]
[1659225950233,0.01255594,23566.0,23564.0,0.106027]
[1659225950890,0.01255594,23566.0,23564.0,0.152027]
[1659225951125,0.01255594,23566.0,23565.0,0.50438354]
[1659225951411,0.01255594,23566.0,23565.0,0.80438354]
[1659225952949,0.01255594,23566.0,23565.0,0.83438354]
[1659225954059,0.01255594,23566.0,23565.0,0.38438354]
[1659225954285,0.01255594,23566.0,23565.0,0.35438354]
[1659225954935,0.01255594,23566.0,23565.0,0.30438354]
[1659225955444,0.01255594,23566.0,23565.0,0.03]
[1659225956305,0.01255594,23566.0,23564.0,0.212063]
[1659225956521,0.01255594,23566.0,23565.0,0.05]
[1659225957165,0.01255594,23566.0,23565.0,0.35]
[1659225958066,0.01255594,23566.0,23565.0,0.45]
[1659225958284,0.01255594,23566.0,23565.0,0.754792]
[1659225958494,0.01255594,23566.0,23565.0,0.654792]
[1659225958731,0.01255594,23566.0,23565.0,0.35]
[1659225958978,0.01255594,23566.0,23565.0,0.688792]
[1659225959414,0.01255594,23566.0,23565.0,1.14604933]
[1659225959623,0.01255594,23566.0,23565.0,1.19604933]
[1659225960302,0.01255594,23566.0,23565.0,1.16204933]
[1659225960876,0.01255594,23566.0,23565.0,1.20004933]
[1659225962195,0.01255594,23566.0,23565.0,1.16204933]
[1659225962419,0.00755594,23566.0,23565.0,1.1746611]
[1659225962629,0.00755594,23566.0,23565.0,1.2064911]
[1659225962857,0.00755594,23566.0,23565.0,1.2404911]
[1659225963066,0.00755594,23566.0,23565.0,1.2086611]
[1659225963494,0.001,23573.0,23566.0,1.15]
[1659225963714,0.00062694,23573.0,23571.0,0.05]
[1659225963969,0.00062694,23573.0,23567.0,1.44336533]
[1659225963970,0.0353001,23573.0,23567.0,1.44336533]
[1659225964199,0.6482,23580.0,23568.0,1.55725733]
[1659225964431,0.6482,23580.0,23572.0,0.05]
[1659225964653,0.0042,23580.0,23574.0,0.311987]
[1659225964874,0.0042,23580.0,23576.0,0.211959]
[1659225965101,0.0042,23580.0,23579.0,0.05]
[1659225965384,0.0042,23580.0,23579.0,0.211947]
[1659225965618,0.0042,23580.0,23576.0,0.21194475]
[1659225965619,0.0042,23580.0,23578.0,0.211946]
[1659225965843,0.05,23579.0,23569.0,0.21929952]
[1659225966073,0.46145733,23580.0,23571.0,0.106014]
[1659225966074,0.71204933,23578.0,23571.0,0.106014]
[1659225966335,0.71204933,23577.0,23571.0,0.318035]
[1659225966577,0.40725733,23577.0,23572.0,0.304792]
[1659225966810,0.40725733,23577.0,23573.0,0.304792]
[1659225967036,0.40725733,23577.0,23574.0,0.33561906]
[1659225967243,0.40725733,23577.0,23574.0,0.03082706]
[1659225967474,0.41145733,23580.0,23576.0,0.05]
[1659225967723,0.41145733,23580.0,23577.0,0.211971]
[1659225967916,0.41530343,23580.0,23577.0,0.24279806]
[1659225968146,0.0042,23580.0,23577.0,0.24279806]
[1659225968368,0.0042,23580.0,23579.0,0.05]
[1659225968597,0.0042,23580.0,23579.0,0.1]